[Event "79th LOTTO Polish-ch 2022"]
[Site "Kruszwica"]
[Date "2022.05.13"]
[Round "3.1"]
[White "Socko, Bartosz"]
[Black "Gumularz, Szymon"]
[Result "1-0"]
[ECO "D05"]
[WhiteElo "2636"]
[BlackElo "2513"]
[Annotator "TA"]
[PlyCount "45"]
[EventDate "2022.05.10"]
[EventType "k.o."]
[EventCountry "POL"]
[SourceTitle "playchess.com"]
[Source "ChessBase"]
[SourceQuality "1"]
[TimeControl "40/5400+30:1800+30"]

{[%evp 12,45,10,11,11,9,10,2,15,0,5,15,20,0,0,0,109,96,104,23,125,133,140,140,146,147,145,109,278,268,511,501,499,490,469,447]} 1. d4 {[%emt 0:00:04]} d5 {[%emt 0:00:10]} 2. Nf3 {[%emt 0:00:08]} Nf6 {[%emt 0:00:12]} 3. e3 {[%emt 0:00:05]} e6 {[%emt 0:07:44]} 4. Bd3 {[%emt 0:00:16]} c5 {[%emt 0:04:37]} 5. b3 {[%emt 0:00:18]} Nc6 {[%emt 0:00:52]} 6. O-O {[%emt 0:00:26]} Be7 {[%emt 0:00:28]} 7. Bb2 {[%emt 0:00:08]} b6 {[%emt 0:05:35] D05: Colle System with ...e6.} 8. dxc5 $5 {[%emt 0:00:27][%mdl 4] An interesting side line.} bxc5 {[%emt 0:01:10]} 9. c4 {[%emt 0:00:07]} O-O {[%emt 0:00:50] The position is equal.} 10. Nbd2 {[%emt 0:01:08] [#]} Qb6 $146 {[%emt 0:07:28]} ({Predecessor:} 10... Bb7 11. Rc1 Qb6 12. a4 Rfd8 13. cxd5 exd5 14. Qc2 h6 15. Nh4 d4 16. Nf5 Bf8 {0-1 (33) Ibragimov,I (2582)-Onischuk,A (2655) Philadelphia 2004}) 11. Rc1 {[%emt 0:09:59]} Rd8 {[%emt 0:04:33]} 12. cxd5 {[%emt 0:02:30]} exd5 {[%emt 0:01:14]} 13. a3 {[%emt 0:12:01]} d4 {[%emt 0:16:13]} (13... g6 $11 {keeps the balance.}) 14. exd4 $16 {[%emt 0:03:00]} Nxd4 {[%emt 0:14:04]} 15. Re1 {[%emt 0:16:25]} ({White should try} 15. Nxd4 $16 cxd4 16. Nc4) 15... Bf8 {[%emt 0:08:31]} (15... Nxf3+ $1 $11 16. Qxf3 (16. Nxf3 Be6 $11) 16... Bg4) 16. Nxd4 {[%emt 0:03:24]} cxd4 {[%emt 0:00:05]} 17. Nc4 {[%emt 0:00:08][%cal Bd2c4,Bc4a5,Ba5c6][%mdl 32] White is more active.} Qb7 {[%emt 0:00:45]} 18. Na5 {[%emt 0:02:45]} Qd5 {[%emt 0:03:06]} 19. Nc6 {[%emt 0:02:52][%cal Od3c4] [#] Black must now prevent Bc4!} Bg4 $2 {[%emt 0:11:55] A mistake that costs the game.} (19... Bb7 $2 20. Re5 Qxc6 21. Rxc6 Bxc6 22. h3 $18) (19... Re8 $16 {is a better defense.}) 20. f3 $18 {[%emt 0:03:31][%cal Bf2f3,Bf3g4,Bg4g5][%mdl 32]} Rdc8 {[%emt 0:00:15]} (20... Be6 {was called for.} 21. Nxd8 Rxd8) 21. fxg4 {[%emt 0:00:50] White is clearly winning.} Rxc6 {[%emt 0:00:06]} 22. g5 {[%emt 0:00:11]} Rxc1 {[%emt 0:03:33]} 23. Bxc1 {[%emt 0:00:43] Weighted Error Value: White=0.11 (very precise) /Black=0.51} 1-0

[Event "79th LOTTO Polish-ch 2022"]
[Site "Kruszwica"]
[Date "2022.05.13"]
[Round "3.1"]
[White "Piorun, Kacper"]
[Black "Tomczak, Jacek"]
[Result "1/2-1/2"]
[ECO "A05"]
[WhiteElo "2635"]
[BlackElo "2584"]
[Annotator "TA"]
[PlyCount "60"]
[EventDate "2022.05.10"]
[EventType "k.o."]
[EventCountry "POL"]
[SourceTitle "playchess.com"]
[Source "ChessBase"]
[SourceQuality "1"]
[TimeControl "40/5400+30:1800+30"]

{[%evp 16,60,6,3,16,0,0,-9,0,-3,-2,-3,0,-10,-3,-20,-32,-53,-34,-53,-58,-56,-52,-49,-45,-45,-50,-55,-55,-50,-50,-63,-44,-51,-46,-75,-51,-48,-6,-4,-15,-8,0,0,-1,0,0]} 1. Nf3 {[%emt 0:00:23]} Nf6 {[%emt 0:00:08]} 2. g3 {[%emt 0:00:05]} g6 {[%emt 0:00:16]} 3. b3 {[%emt 0:00:42]} Bg7 {[%emt 0:00:30]} 4. Bb2 {[%emt 0:00:05]} b6 {[%emt 0:02:16]} 5. Bg2 {[%emt 0:01:26]} Bb7 {[%emt 0:00:12]} 6. O-O {[%emt 0:05:33]} O-O {[%emt 0:00:21]} 7. d4 {[%emt 0:03:51]} c5 {[%emt 0:00:31]} 8. dxc5 {[%emt 0:00:25]} bxc5 {[%emt 0:00:05]} 9. c4 {[%emt 0:00:03]} d6 {[%emt 0:01:32] A47: 1 d4 Nf6 2 Nf3 b6: Torre, London and Colle Systems.} 10. Nc3 {[%emt 0:06:11]} Ne4 {[%emt 0:03:05]} 11. Qc1 {[%emt 0:00:21]} Nxc3 {[%emt 0:00:55]} 12. Bxc3 {[%emt 0:00:01]} Bxc3 {[%emt 0:00:19]} 13. Qxc3 {[%emt 0:00:01]} Nd7 {[%emt 0:01:00]} 14. Rfe1 {[%emt 0:04:01]} Nf6 {[%emt 0:01:38] [#]} 15. Qd3 $146 {[%emt 0:00:23]} ({Predecessor:} 15. Nh4 Bxg2 16. Nxg2 a5 17. e4 a4 18. e5 dxe5 19. Rad1 Qb6 20. Qxe5 axb3 21. axb3 Rfe8 22. Rd3 Rad8 23. Rf3 Qc6 24. Rf4 Rd6 25. Qg5 Rb8 26. Rxe7 {½-½ (26) Prohaszka,P (2593)-Karavade,E (2409) Zalakaros 2016}) 15... Be4 {[%emt 0:06:29]} 16. Qd2 {[%emt 0:05:30]} a5 {[%emt 0:04:49]} 17. Ng5 {[%emt 0:12:53]} Bxg2 {[%emt 0:01:19]} 18. Kxg2 {[%emt 0:00:02]} a4 {[%emt 0:01:22]} 19. Rab1 {[%emt 0:00:05]} axb3 {[%emt 0:04:33]} 20. axb3 {[%emt 0:00:07]} Ra3 {[%emt 0:00:15]} 21. e4 {[%emt 0:01:55]} Qa8 {[%emt 0:00:50]} 22. Qd3 {[%emt 0:10:11]} Rb8 {[%emt 0:14:09][%cal Bf8b8,Bb8b6,Bb6a6][%mdl 32]} 23. Nf3 {[%emt 0:01:11]} Nd7 {[%emt 0:05:49]} 24. Kg1 {[%emt 0:10:04]} Qb7 {[%emt 0:09:08][%cal Ra3b3]} 25. Re3 {[%emt 0:00:53]} Qc7 {[%emt 0:00:52]} (25... f6 {with more complications.} 26. Qd5+ Kg7 27. g4 Nf8) 26. Qd2 {[%emt 0:08:03]} Rb6 {[%emt 0:12:25]} 27. e5 {[%emt 0:11:54] The position is equal.} dxe5 {[%emt 0:01:55] Threatening ...f6.} 28. Qb2 $1 {[%emt 0:00:08][%csl LRa3,LRe5]} Rba6 {[%emt 0:07:16] Strongly threatening ...Ra2.} 29. Nxe5 {[%emt 0:00:37]} Ra2 {[%emt 0:00:39]} 30. Qc3 {[%emt 0:00:07]} Nxe5 {[%emt 0:00:45] Weighted Error Value: White=0.08 (flawless) /Black=0.06 (flawless)} 1/2-1/2

[Event "79th LOTTO Polish-ch 2022"]
[Site "Kruszwica"]
[Date "2022.05.13"]
[Round "3.1"]
[White "Licznerski, Lukasz"]
[Black "Teclaf, Pawel"]
[Result "1-0"]
[ECO "B42"]
[WhiteElo "2439"]
[BlackElo "2537"]
[Annotator "TA"]
[PlyCount "85"]
[EventDate "2022.05.10"]
[EventType "k.o."]
[EventCountry "POL"]
[SourceTitle "playchess.com"]
[Source "ChessBase"]
[SourceQuality "1"]
[TimeControl "40/5400+30:1800+30"]

{[%evp 12,85,41,28,37,34,37,34,46,28,48,47,56,56,53,40,96,100,89,90,91,99,135,130,124,126,154,115,142,152,143,140,131,132,148,143,146,133,207,214,255,259,273,272,274,265,262,272,262,258,387,390,395,397,444,437,460,459,438,438,431,472,487,491,498,468,595,512,795,787,1072,1041,1045,1075,983,731]} 1. e4 {[%emt 0:00:03]} c5 {[%emt 0:00:22]} 2. Nf3 {[%emt 0:00:08]} e6 {[%emt 0:00:04]} 3. d4 {[%emt 0:00:09]} cxd4 {[%emt 0:00:04]} 4. Nxd4 {[%emt 0:00:05]} a6 {[%emt 0:00:03]} 5. Bd3 {[%emt 0:00:06]} Bc5 {[%emt 0:00:05]} 6. Nb3 {[%emt 0:00:07]} Ba7 {[%emt 0:00:03]} 7. Qe2 {[%emt 0:00:14]} Ne7 {[%emt 0:00:05] B42: Sicilian: Kan Variation: 5 Bd3.} 8. Be3 {[%emt 0:01:34]} O-O {[%emt 0:00:05]} 9. O-O {[%emt 0:03:28] 9.N1d2 is setting a new trend.} Nbc6 {[%emt 0:03:34] White is slightly better.} 10. Rd1 {[%emt 0:12:45]} Qc7 {[%emt 0:08:17]} 11. c4 {[%emt 0:06:52] [#]} Ng6 $146 {[%emt 0:22:59]} ({Predecessor:} 11... Ne5 12. Bxa7 Rxa7 13. Qe3 b6 14. Nc3 f5 15. Rac1 Ng4 16. Qg3 Qxg3 17. fxg3 fxe4 18. Nxe4 {1-0 (25) Bonehill,A (2159)-Lauer,R (2260) ICCF email 2013}) 12. Bxa7 {[%emt 0:01:58]} Rxa7 {[%emt 0:03:04]} 13. Qe3 {[%emt 0:03:05]} Qf4 {[%emt 0:07:08]} (13... b6 $14) 14. Qxf4 $16 {[%emt 0:02:43] White now steadily converts the win.} Nxf4 {[%emt 0:00:07]} 15. Bf1 {[%emt 0:00:08]} b6 {[%emt 0:14:29]} 16. Nc3 {[%emt 0:01:07][%cal Bb1c3,Bc3a4,Ba4b6,Bb6c4,Bc4d6][%mdl 32]} Rd8 {[%emt 0:03:01]} 17. Na4 {[%emt 0:03:35]} Rb7 {[%emt 0:01:11]} 18. g3 {[%emt 0:11:00]} Ng6 {[%emt 0:00:14]} 19. c5 {[%emt 0:00:06]} b5 {[%emt 0:09:03]} 20. Nb6 {[%emt 0:00:25]} Rc7 {[%emt 0:00:59]} 21. a4 {[%emt 0:00:41]} bxa4 {[%emt 0:00:36]} 22. Rxa4 {[%emt 0:01:07]} Nb8 {[%emt 0:01:16]} 23. Nc4 {[%emt 0:19:53] White is much more active. The black rooks are badly placed.} Ne7 {[%emt 0:07:53]} 24. Nd6 {[%emt 0:00:59]} Nec6 {[%emt 0:01:38]} (24... Rf8 $16 {was necessary.} 25. f4 f5) 25. Nd2 $18 {[%emt 0:05:17]} a5 {[%emt 0:10:40]} 26. Nb3 {[%emt 0:00:28]} Ba6 {[%emt 0:00:45]} 27. Nxa5 {[%emt 0:00:22] [#] Hoping for Bxa6.} Bxf1 {[%emt 0:00:43]} 28. Kxf1 {[%emt 0:00:48]} ({Don't do} 28. Rxf1 $6 Nxa5 29. Rxa5 Nc6 $18) 28... Nxa5 {[%emt 0:00:24]} 29. Rxa5 {[%emt 0:00:02]} Nc6 {[%emt 0:00:06]} 30. Ra2 {[%emt 0:05:03]} Nb4 {[%emt 0:02:27]} (30... h6 {might work better.} 31. Rda1 Kh7) 31. Ra4 {[%emt 0:00:55]} Rb8 {[%emt 0:00:13] [#]} 32. Rda1 $1 {[%emt 0:01:38]} h6 {[%emt 0:00:27]} 33. Ra8 {[%emt 0:00:23] White is clearly winning.} Rxa8 {[%emt 0:00:12]} 34. Rxa8+ {[%emt 0:00:02][%mdl 4096] Endgame KRN-KRN} Kh7 {[%emt 0:00:07]} 35. Ra4 {[%emt 0:00:58]} Nc6 {[%emt 0:03:46]} 36. b4 {[%emt 0:02:14][%cal Bb2b4,Bb4b5][%mdl 32]} Nd4 {[%emt 0:00:35]} 37. Nxf7 {[%emt 0:03:21]} Nb5 {[%emt 0:00:53]} 38. Ra6 {[%emt 0:01:22]} d5 {[%emt 0:00:52]} 39. Nd6 {[%emt 0:00:28]} Nc3 {[%emt 0:00:05]} (39... Nd4 $142 40. exd5 exd5) 40. c6 {[%emt 0:00:00]} d4 {[%emt 0:00:00]} 41. b5 {[%emt 0:03:26]} d3 {[%emt 0:03:17]} 42. Ke1 {[%emt 0:00:21] Strongly threatening Kd2.} Nb1 {[%emt 0:00:04]} 43. Ra1 {[%emt 0:00:33] Weighted Error Value: White=0.06 (flawless) /Black=0.24 (precise)} 1-0

[Event "79th LOTTO Polish-ch 2022"]
[Site "Kruszwica"]
[Date "2022.05.13"]
[Round "3.1"]
[White "Kosakowski, Jakub"]
[Black "Gajewski, Grzegorz"]
[Result "0-1"]
[ECO "B92"]
[WhiteElo "2435"]
[BlackElo "2589"]
[Annotator "TA"]
[PlyCount "64"]
[EventDate "2022.05.10"]
[EventType "k.o."]
[EventCountry "POL"]
[SourceTitle "playchess.com"]
[Source "ChessBase"]
[SourceQuality "1"]
[TimeControl "40/5400+30:1800+30"]

{[%evp 16,64,24,6,6,7,6,6,8,0,24,25,25,29,17,20,29,20,27,24,22,29,40,0,0,0,38,39,66,31,62,76,74,27,32,22,22,0,0,0,0,-203,-205,-245,-229,-391,-386,-360,-375,-368,-313]} 1. e4 {[%emt 0:00:11]} c5 {[%emt 0:00:05]} 2. Nf3 {[%emt 0:00:17]} d6 {[%emt 0:00:04]} 3. d4 {[%emt 0:00:28]} cxd4 {[%emt 0:00:06]} 4. Nxd4 {[%emt 0:00:46]} Nf6 {[%emt 0:00:11]} 5. Nc3 {[%emt 0:00:10]} a6 {[%emt 0:00:03]} 6. Be2 {[%emt 0:01:31]} e5 {[%emt 0:00:10]} 7. Nb3 {[%emt 0:00:09]} Be7 {[%emt 0:00:06]} 8. O-O {[%emt 0:00:30]} O-O {[%emt 0:00:06]} 9. Re1 {[%emt 0:02:26]} Be6 {[%emt 0:00:10] B92: Sicilian Najdorf: 6 Be2.} 10. Bf3 {[%emt 0:00:16]} Nbd7 {[%emt 0:00:44]} 11. a4 {[%emt 0:01:02]} Rc8 {[%emt 0:02:42] The position is equal.} 12. Nd2 {[%emt 0:01:08]} Qc7 {[%emt 0:06:18][%cal Ob7b5]} 13. Nf1 {[%emt 0:02:27]} Rfe8 $5 {[%emt 0:02:52][%mdl 4] A promising side line.} 14. Ne3 {[%emt 0:02:40] [#]} Qc5 $146 {[%emt 0:07:45]} ({Predecessor:} 14... Nb6 15. a5 Nc4 16. Nxc4 Qxc4 17. Bg5 h6 18. Bxf6 Bxf6 19. Bg4 Qb4 20. Nd5 Bxd5 21. Bxc8 Bxe4 {½-½ (68) Hansen,T (2410)-Aulin Jansson,J (2273) Drammen 2018}) 15. Bd2 {[%emt 0:04:59]} Bd8 {[%emt 0:01:44]} 16. Ncd5 {[%emt 0:06:28]} Bxd5 {[%emt 0:00:26]} 17. b4 {[%emt 0:00:13]} Qa7 {[%emt 0:03:07]} 18. exd5 {[%emt 0:01:19]} ({Of course not} 18. Nxd5 Nxd5 19. exd5 Bb6 $15) 18... a5 {[%emt 0:05:04]} 19. c3 {[%emt 0:16:52]} (19. Nf5 {feels hotter.} e4 20. Be2 Bb6 21. Rf1) 19... Bb6 {[%emt 0:03:23]} 20. Be2 {[%emt 0:06:55]} g6 {[%emt 0:25:43]} 21. Bb5 {[%emt 0:02:12]} Red8 {[%emt 0:04:03]} 22. bxa5 {[%emt 0:06:06]} Bc5 {[%emt 0:01:32]} 23. Qf3 {[%emt 0:02:05] Against Ne4} Qxa5 {[%emt 0:04:13] [#]} 24. Nf5 $1 {[%emt 0:12:07]} gxf5 $11 {[%emt 0:05:56]} 25. Qxf5 {[%emt 0:00:13] Strongly threatening Bg5.} Qc7 {[%emt 0:16:02]} (25... Kh8 $2 26. Bg5 Qxc3 27. Bxf6+ Nxf6 28. Qxf6+ Kg8 29. Qg5+ Kh8 30. Rac1 $18) 26. Bh6 {[%emt 0:23:28][%mdl 1024] Threatening mate with Qg5+. White has compensation.} (26. Bg5 $5 {[%cal Rg5f6]} Ne8 27. Bh6 $11 (27. Bxd8 Rxd8 28. Qg5+ Ng7 $15)) 26... Kh8 {[%emt 0:00:36]} 27. Bg5 $36 {[%emt 0:00:02][%mdl 2048] White has the initiative. A strong pair of Bishops.} ({Wrong is} 27. Bxd7 $2 Nxd7 28. Bg5 Rg8 $19) 27... Ng8 {[%emt 0:04:28] aiming for ...f6.} 28. Re4 $2 {[%emt 0:05:05] [#]} (28. Bxd7 $11 Rxd7 29. Bf6+ Nxf6 30. Qxf6+ Kg8 31. Re4) 28... f6 $1 $19 {[%emt 0:00:35]} 29. Rh4 {[%emt 0:02:17][%csl Gf5][%cal Rh4h7] [#]} Nf8 {[%emt 0:00:02]} 30. Bh6 {[%emt 0:00:33]} (30. Bxf6+ {was worth a try.} Nxf6 31. Qxf6+ Qg7 32. Qxg7+ Kxg7 33. Bd3) 30... Ng6 {[%emt 0:02:00] Black is winning.} 31. Rh3 {[%emt 0:00:27]} Nxh6 {[%emt 0:00:09]} 32. Rxh6 {[%emt 0:00:02]} Qg7 {[%emt 0:00:46] Weighted Error Value: White=0.28 (precise) /Black=0.05 (flawless)} 0-1

[Event "79th LOTTO Polish-ch 2022"]
[Site "Kruszwica"]
[Date "2022.05.13"]
[Round "3.1"]
[White "Szpar, Milosz"]
[Black "Bartel, Mateusz"]
[Result "1/2-1/2"]
[ECO "C84"]
[WhiteElo "2434"]
[BlackElo "2619"]
[Annotator "TA"]
[PlyCount "49"]
[EventDate "2022.05.10"]
[EventType "k.o."]
[EventCountry "POL"]
[SourceTitle "playchess.com"]
[Source "ChessBase"]
[SourceQuality "1"]
[TimeControl "40/5400+30:1800+30"]

{[%evp 17,49,27,44,33,25,16,30,16,17,14,23,5,10,0,11,7,9,10,19,23,18,7,28,28,43,0,9,-18,79,0,4,-14,57,0]} 1. e4 {[%emt 0:00:04]} e5 {[%emt 0:00:07]} 2. Nf3 {[%emt 0:00:09]} Nc6 {[%emt 0:00:05]} 3. Bb5 {[%emt 0:00:38]} a6 {[%emt 0:00:05]} 4. Ba4 {[%emt 0:00:06]} Nf6 {[%emt 0:00:04]} 5. O-O {[%emt 0:00:42]} Be7 {[%emt 0:00:05]} 6. d3 {[%emt 0:03:52]} d6 {[%emt 0:00:04]} 7. c3 {[%emt 0:00:42]} O-O {[%emt 0:00:06]} 8. Re1 {[%emt 0:01:32]} b5 {[%emt 0:00:19][%cal Bb7b5,Bb5b4][%mdl 32]} 9. Bc2 {[%emt 0:01:05]} Re8 {[%emt 0:00:11]} 10. Nbd2 {[%emt 0:02:09] C84: Closed Ruy Lopez: Unusual White 6th moves.} Bf8 {[%emt 0:00:43]} 11. Nf1 {[%emt 0:06:37]} h6 {[%emt 0:00:18]} 12. a4 {[%emt 0:02:31] Black should prevent axb5. White has an edge.} b4 {[%emt 0:05:52]} 13. a5 {[%emt 0:03:29]} Rb8 {[%emt 0:02:49] [#]} 14. Ba4 $146 {[%emt 0:08:43]} ({Predecessor:} 14. Ng3 Bd7 15. Bd2 d5 16. exd5 Nxd5 17. Bb3 bxc3 18. bxc3 Nf6 19. h3 Rb5 20. Qc2 {½-½ (32) Cadillon Costa,L (2369)-Cumming,D (2369) ICCF email 2020}) 14... Bd7 {[%emt 0:00:02]} 15. Ne3 {[%emt 0:00:23]} Na7 {[%emt 0:04:13]} 16. Bb3 {[%emt 0:11:59]} bxc3 {[%emt 0:03:22]} 17. bxc3 {[%emt 0:00:05]} Nb5 {[%emt 0:00:07]} 18. Bd2 {[%emt 0:05:21]} c6 {[%emt 0:00:15]} 19. h3 {[%emt 0:08:18]} Rb7 {[%emt 0:15:25]} 20. Qc2 {[%emt 0:03:58]} Bc8 {[%emt 0:00:34]} 21. Qa2 {[%emt 0:02:15]} Nh5 {[%emt 0:03:10]} 22. Ng4 {[%emt 0:04:46]} Nf6 {[%emt 0:05:01]} (22... Nf4 $11 {remains equal.}) 23. Ne3 {[%emt 0:03:03] White is more active.} (23. Nxf6+ $16 Qxf6 24. c4) 23... Nh5 $11 {[%emt 0:03:42]} 24. Ng4 {[%emt 0:00:14]} Nf6 {[%emt 0:00:08]} (24... Nf4 $11) 25. Ne3 {[%emt 0:02:37] Weighted Error Value: White=0.21 (precise) /Black=0.19 (very precise)} (25. c4 $14 Bxg4 26. cxb5 (26. hxg4 Nd4 $11) 26... Bxf3 27. bxc6 Rxb3 28. Qxb3) 1/2-1/2

[Event "79th LOTTO Polish-ch 2022"]
[Site "Kruszwica"]
[Date "2022.05.14"]
[Round "4.1"]
[White "Wojtaszek, Radoslaw"]
[Black "Moranda, Wojciech"]
[Result "1/2-1/2"]
[ECO "E42"]
[WhiteElo "2696"]
[BlackElo "2630"]
[Annotator "TA"]
[PlyCount "111"]
[EventDate "2022.05.10"]
[EventType "k.o."]
[EventCountry "POL"]
[SourceTitle "playchess.com"]
[Source "ChessBase"]
[SourceQuality "1"]
[TimeControl "900+10"]

{[%evp 12,111,29,26,15,22,27,18,23,18,6,29,14,0,0,0,0,7,7,11,32,34,34,7,29,30,17,20,33,37,30,24,70,69,72,64,66,62,79,59,65,45,41,16,15,15,52,52,50,50,54,0,0,0,12,12,12,12,12,12,12,12,12,12,12,12,12,12,12,12,12,12,12,12,12,4,12,12,12,10,12,12,12,11,12,11,12,11,12,11,12,12,12,12,12,12,12,12,28,28,28,28]} 1. d4 {[%emt 0:00:01]} Nf6 {[%emt 0:00:01]} 2. c4 {[%emt 0:00:01]} e6 {[%emt 0:00:01]} 3. Nc3 {[%emt 0:00:01]} Bb4 {[%emt 0:00:02][%cal Bf8b4,Bb4a5,Ba5c7,Bc7b8][%mdl 32]} 4. e3 {[%emt 0:00:02]} c5 {[%emt 0:00:02]} 5. Nge2 {[%emt 0:00:05]} d5 {[%emt 0:00:01]} 6. a3 {[%emt 0:00:16]} Ba5 {[%emt 0:00:02]} 7. dxc5 {[%emt 0:00:18] Black must now prevent b4.} dxc4 {[%emt 0:00:01] E42: Nimzo-Indian: Rubinstein: 4...c5 5 Ne2.} 8. Bd2 {[%emt 0:01:34]} Nbd7 {[%emt 0:00:10]} 9. Ng3 {[%emt 0:00:36]} Nxc5 {[%emt 0:00:11][%cal Ob7b5] The position is equal.} 10. Bxc4 {[%emt 0:00:09] [#] Strongly threatening b4.} Bc7 {[%emt 0:00:01]} 11. Qc2 {[%emt 0:00:26]} O-O {[%emt 0:00:18] [#]} 12. O-O $146 {[%emt 0:00:24]} ({Predecessor:} 12. Rd1 Qe7 13. b4 Ncd7 14. Nce4 b6 15. Bd3 Nd5 16. Nc3 N5f6 17. Nb5 Ne5 18. Be2 {½-½ (41) Amico,R (2390)-Kilichenko,A (2363) ICCF email 2013}) 12... b6 {[%emt 0:00:43]} 13. Nb5 {[%emt 0:01:08]} Bb8 {[%emt 0:01:18]} 14. b4 {[%emt 0:00:40]} Ncd7 {[%emt 0:00:17]} 15. Rac1 {[%emt 0:00:34]} a6 {[%emt 0:02:08]} 16. Nd4 {[%emt 0:00:20]} Bb7 {[%emt 0:00:05] Prevents Nc6.} 17. Be2 {[%emt 0:02:09]} (17. Bxe6 $5 fxe6 18. Nxe6 $11) 17... Bxg3 {[%emt 0:01:53]} 18. hxg3 {[%emt 0:00:05]} Rc8 {[%emt 0:00:01]} 19. Qb2 {[%emt 0:00:25]} b5 {[%emt 0:00:57]} 20. Rxc8 {[%emt 0:00:14]} Qxc8 {[%emt 0:00:02]} 21. Rc1 {[%emt 0:00:03]} Qa8 {[%emt 0:00:18]} (21... Qb8 $11) 22. f3 $14 {[%emt 0:00:11] White is more active.} Nb6 {[%emt 0:00:19]} 23. e4 {[%emt 0:00:37]} Rc8 {[%emt 0:00:15]} 24. Nb3 {[%emt 0:00:42]} Rxc1+ {[%emt 0:03:11]} 25. Qxc1 {[%emt 0:00:17]} Qc8 {[%emt 0:00:18] Inhibits Qc7.} 26. Nc5 {[%emt 0:01:15]} Nfd7 {[%emt 0:00:33]} 27. Nxb7 {[%emt 0:00:41]} Qxb7 {[%emt 0:00:01]} 28. Qc3 {[%emt 0:00:10]} Qc8 {[%emt 0:00:26]} 29. Qxc8+ {[%emt 0:01:05]} Nxc8 {[%emt 0:00:02][%mdl 4096] Endgame KBB-KNN} 30. a4 {[%emt 0:00:40]} Nd6 {[%emt 0:01:10]} 31. a5 {[%emt 0:00:16]} (31. axb5 $14 axb5 32. Be3) 31... f6 $11 {[%emt 0:00:44]} 32. Kf2 {[%emt 0:00:04]} Kf7 {[%emt 0:00:19]} 33. Ke3 {[%emt 0:00:20]} Ne5 {[%emt 0:00:49]} 34. Kd4 {[%emt 0:00:15] [#] Hoping for Bf4.} Nb7 {[%emt 0:00:02]} 35. f4 {[%emt 0:00:36]} Nc6+ {[%emt 0:00:02]} 36. Kd3 {[%emt 0:00:02]} Nd6 {[%emt 0:00:42]} 37. Bc3 {[%emt 0:00:08]} e5 {[%emt 0:00:38]} 38. Bd1 {[%emt 0:00:08] aiming for Bb3+.} Nc8 {[%emt 0:01:22]} 39. Bb3+ {[%emt 0:00:04]} Ke8 {[%emt 0:00:02]} 40. Be6 {[%emt 0:01:19]} N8e7 {[%emt 0:00:05]} 41. Bd2 {[%emt 0:01:10]} Kd8 {[%emt 0:00:28]} 42. Kc3 {[%emt 0:00:02]} Nd4 {[%emt 0:00:18]} 43. Bg4 {[%emt 0:00:02]} h6 {[%emt 0:00:17]} 44. Be3 {[%emt 0:00:03]} Nec6 {[%emt 0:00:18]} 45. Bf2 {[%emt 0:00:50]} Kc7 {[%emt 0:00:18]} 46. Bh5 {[%emt 0:00:46]} Kd8 {[%emt 0:00:01]} 47. Bd1 {[%emt 0:01:18]} Kc7 {[%emt 0:00:08]} 48. Be1 {[%emt 0:00:03]} Kd6 {[%emt 0:00:06]} 49. Kd3 {[%emt 0:00:03]} Ke7 {[%emt 0:00:27]} 50. Bh5 {[%emt 0:00:05]} Kd8 {[%emt 0:00:17]} 51. Bf7 {[%emt 0:00:04]} Ke7 {[%emt 0:00:01]} 52. Bd5 {[%emt 0:00:06]} Kd6 {[%emt 0:00:01]} 53. Bc3 {[%emt 0:00:05]} Kc7 {[%emt 0:00:24]} 54. g4 {[%emt 0:00:33]} g5 {[%emt 0:00:24]} 55. f5 {[%emt 0:00:29]} Kb8 {[%emt 0:00:16]} 56. Bd2 {Weighted Error Value: White=0.03 (flawless) /Black=0.04 (flawless)} 1/2-1/2